[Event "TUR-ch Veterans 2020"]
[Site "Antalya-Belek"]
[Date "2020.01.23"]
[Round "6"]
[White "Cicek, Cemil"]
[Black "Bapoglu, Ibrahim"]
[Result "1-0"]
[ECO "D04"]
[WhiteElo "1940"]
[BlackElo "1576"]
[Annotator "NA"]
[PlyCount "81"]
[EventDate "2020.01.19"]
[EventCountry "TUR"]
[SourceTitle "playchess.com"]
[Source "ChessBase"]
[SourceQuality "1"]
[TimeControl "5400+30"]

1. d4 {[%emt 0:00:30]} Nf6 {[%emt 0:00:30]} 2. Nf3 {[%emt 0:00:00]} g6 {[%emt 0:01:30]} 3. Nbd2 {[%emt 0:01:00]} d5 {[%emt 0:00:30]} 4. b3 {[%emt 0:00:30]} Bg7 {[%emt 0:00:30]} 5. Bb2 {[%emt 0:00:30]} O-O {[%emt 0:01:30]} 6. e3 {[%emt 0:00:00]} Re8 {[%emt 0:01:30] D04: Colle System} (6... b6 7. Bd3 Bb7 8. O-O Nbd7 9. c4 e6 10. Rc1 dxc4 11. Nxc4 Qe7 12. Ba3 c5 13. Qe2 Rac8 14. Nfe5 Nxe5 15. dxe5 {½-½ (45) Nakamura,H (2786)-Caruana,F (2802) chess.com INT 2017}) 7. Ne5 $146 {[%emt 0:00:00]} ({Predecessor:} 7. h3 Nc6 8. c4 e6 9. Bd3 dxc4 10. bxc4 b6 11. a3 Bb7 12. Qc2 Ne7 13. O-O Rc8 14. e4 {0-1 (32) Malek,O (1800)-Alves,A (1841) Pocos de Caldas 2019}) 7... Nbd7 {[%emt 0:01:30]} 8. Be2 {[%emt 0:00:30]} Nxe5 {[%emt 0:03:30]} 9. dxe5 {[%emt 0:00:30]} Nd7 {[%emt 0:00:30]} 10. f4 {[%emt 0:00:30]} e6 {[%emt 0:00:00]} 11. Nf3 {[%emt 0:00:30]} c5 {[%emt 0:03:00]} 12. h4 {[%emt 0:02:30]} b5 {[%emt 0:02:30]} 13. Bxb5 {[%emt 0:00:30]} Qa5+ {[%emt 0:00:00]} 14. Kf2 {[%emt 0:01:30]} Qxb5 {[%emt 0:00:00]} 15. a4 {[%emt 0:00:30]} Qc6 {[%emt 0:01:30]} 16. g4 {[%emt 0:00:30]} Bb7 {[%emt 0:00:30]} 17. h5 {[%emt 0:02:30]} Nf8 {[%emt 0:00:30]} 18. Rh3 {[%emt 0:02:30]} Rad8 {[%emt 0:00:30]} 19. Qd2 {[%emt 0:00:30]} Rd7 {[%emt 0:00:30]} 20. h6 {[%emt 0:01:30]} Bh8 {[%emt 0:00:30]} 21. g5 {[%emt 0:00:30]} Red8 {[%emt 0:00:30]} 22. c3 {[%emt 0:01:30]} a5 {[%emt 0:02:30]} 23. Rc1 {[%emt 0:02:30]} Qb6 {[%emt 0:01:30]} 24. Qc2 {[%emt 0:00:30]} Ba6 {[%emt 0:06:30]} 25. Ba3 {[%emt 0:01:30]} Rb8 {[%emt 0:02:30]} 26. Rb1 {[%emt 0:00:30]} Rdb7 {[%emt 0:00:30]} 27. b4 {[%emt 0:01:30]} cxb4 {[%emt 0:08:30]} 28. cxb4 {[%emt 0:00:30]} axb4 {[%emt 0:02:30]} 29. Rxb4 {[%emt 0:00:30]} Qd8 {[%emt 0:00:30]} 30. Rxb7 {[%emt 0:00:30]} Rxb7 {[%emt 0:00:30]} 31. Nd4 {[%emt 0:01:30]} Bc4 {[%emt 0:01:30]} 32. Rh1 {[%emt 0:01:30]} Nd7 $2 {[%emt 0:00:30]} (32... Rc7 $11 {and Black is okay.}) 33. Nc6 {[%emt 0:00:30]} Qa8 {[%emt 0:05:30]} 34. Ne7+ {[%emt 0:00:30]} Kf8 {[%emt 0:00:30]} 35. Nxg6+ {[%emt 0:00:30]} Ke8 {[%emt 0:00:30]} 36. Nxh8 {[%emt 0:00:30]} Qa5 {[%emt 0:08:30] [#]} 37. Nxf7 $1 {[%emt 0:01:30]} Rb3 {[%emt 0:02:30]} 38. Nd6+ {[%emt 0:01:30]} Kd8 {[%emt 0:01:30]} 39. Bc1 {[%emt 0:01:30]} Qxa4 {[%emt 0:03:30]} 40. g6 {[%emt 0:01:30]} Nc5 {[%emt 0:02:30]} 41. gxh7 {[%emt 0:00:30]} 1-0

[Event "TUR-ch Veterans 2020"]
[Site "Antalya-Belek"]
[Date "2020.01.23"]
[Round "6"]
[White "Uzuner, Tufan Can"]
[Black "Tasan, Mehmet Askin"]
[Result "1/2-1/2"]
[ECO "E18"]
[WhiteElo "1939"]
[BlackElo "1877"]
[Annotator "NA"]
[PlyCount "46"]
[EventDate "2020.01.19"]
[EventCountry "TUR"]
[SourceTitle "playchess.com"]
[Source "ChessBase"]
[SourceQuality "1"]
[TimeControl "5400+30"]

{[%evp 8,42,-6,32767,32767,32767,32767,32767,20,11,32767,32767,67,12,32767,11,32767,32767,32767,32767,55,-6,0,6,0,-16,0,-11,32767,32767,32767,32767,32767,25,32767,7,19]} 1. d4 {[%emt 0:00:30]} Nf6 {[%emt 0:00:30]} 2. Nf3 {[%emt 0:00:00]} e6 {[%emt 0:00:30]} 3. g3 {[%emt 0:00:00]} d5 {[%emt 0:00:30]} 4. Bg2 {[%emt 0:00:30]} Be7 {[%emt 0:00:30]} 5. c4 {[%emt 0:00:00]} O-O {[%emt 0:00:30]} 6. O-O {[%emt 0:00:00]} b6 {[%emt 0:00:30]} 7. Nc3 {[%emt 0:05:30]} Bb7 {[%emt 0:01:30]} 8. Ne5 {[%emt 0:00:30]} c5 {[%emt 0:04:30]} 9. cxd5 {[%emt 0:24:30]} exd5 {[%emt 0:03:30]} 10. Bg5 {[%emt 0:01:30]} Ne4 {[%emt 0:04:30]} 11. Bxe7 {[%emt 0:03:30]} Qxe7 {[%emt 0:00:00]} 12. e3 {[%emt 0:03:30]} Na6 {[%emt 0:05:00]} 13. Qa4 {[%emt 0:11:30]} f6 $146 {[%emt 0:07:30] E18: Queen's Indian: Old Main Line (4 g3 Bb7 5 Bg2 Be7 6 0-0 0-0 7 Nc3)} ({Predecessor:} 13... Nc7 14. Rad1 Rfd8 15. Nd3 Nxc3 16. bxc3 c4 17. Nf4 b5 18. Qc2 a5 19. Rfe1 Re8 20. f3 b4 21. e4 {0-1 (29) Moskovich,D (2164)-Gorodetzky,D (2371) Jerusalem 2015}) 14. Nd3 {[%emt 0:02:30]} Nxc3 $1 {[%emt 0:16:30]} 15. bxc3 {[%emt 0:00:30]} c4 {[%emt 0:01:30]} 16. Nf4 {[%emt 0:00:30]} Nc7 {[%emt 0:00:30]} 17. Qc2 {[%emt 0:10:30]} b5 {[%emt 0:00:30]} 18. a4 {[%emt 0:00:30]} a6 {[%emt 0:00:30]} 19. Rfb1 {[%emt 0:01:30]} Bc6 {[%emt 0:00:30]} 20. Qf5 {[%emt 0:00:30]} Qd6 {[%emt 0:03:30]} 21. h4 {[%emt 0:04:30]} g6 $11 {[%emt 0:02:30]} 22. Qg4 {[%emt 0:08:30]} Bd7 {[%emt 0:03:30]} 23. Qf3 {[%emt 0:00:30]} Bc6 {[%emt 0:01:30]} 1/2-1/2

[Event "TUR-ch Veterans 2020"]
[Site "Antalya-Belek"]
[Date "2020.01.23"]
[Round "6"]
[White "Yasin, Hur"]
[Black "Cetinkaya, Vedat Ali"]
[Result "1-0"]
[ECO "B12"]
[WhiteElo "1936"]
[BlackElo "2026"]
[Annotator "NA"]
[PlyCount "103"]
[EventDate "2020.01.19"]
[EventCountry "TUR"]
[SourceTitle "playchess.com"]
[Source "ChessBase"]
[SourceQuality "1"]
[TimeControl "5400+30"]

1. e4 {[%emt 0:02:30]} c6 {[%emt 0:01:30]} 2. Ne2 {[%emt 0:00:30]} d5 {[%emt 0:00:30]} 3. e5 {[%emt 0:00:30]} Bf5 {[%emt 0:02:30]} 4. Ng3 {[%emt 0:00:00]} Bg6 {[%emt 0:01:30]} 5. h4 {[%emt 0:00:00]} h6 {[%emt 0:00:30]} 6. d4 {[%emt 0:00:30]} e6 {[%emt 0:01:30]} 7. h5 {[%emt 0:00:30]} Bh7 {[%emt 0:00:00]} 8. Bd3 {[%emt 0:00:30]} Bxd3 {[%emt 0:02:00]} 9. Qxd3 {[%emt 0:00:30]} c5 {[%emt 0:01:30]} 10. c3 {[%emt 0:12:30] B12: Caro-Kann: Advance Variation} Qb6 {[%emt 0:01:30]} (10... Nc6 11. O-O cxd4 12. cxd4 Qb6 13. Rd1 Rc8 14. Nc3 Bb4 15. Nce2 Na5 16. f4 Qa6 17. Qf3 g6 18. b3 Rc2 {1-0 (53) Dvalishvili,P (2396)-Daneshvar,B (2278) Moscow 2019}) 11. Nd2 {[%emt 0:02:30]} Ne7 $146 {[%emt 0:01:30]} ({Predecessor:} 11... Nc6 12. Ne2 cxd4 13. cxd4 Rc8 14. O-O Nge7 15. a3 Nf5 16. Nf3 Na5 17. Bd2 {1-0 (40) Espinal Garcia,S (1722)-Jimenez,J (1963) Santo Domingo 2018}) 12. dxc5 {[%emt 0:02:30]} Qxc5 {[%emt 0:00:30]} 13. Nb3 {[%emt 0:00:00]} Qc7 {[%emt 0:02:30]} 14. f4 {[%emt 0:00:00]} Nd7 {[%emt 0:02:30]} 15. Be3 {[%emt 0:00:30]} Nc6 {[%emt 0:02:30]} 16. O-O-O {[%emt 0:03:30]} a6 {[%emt 0:09:30]} 17. Kb1 {[%emt 0:00:30]} Be7 {[%emt 0:00:30]} 18. Ne2 {[%emt 0:02:30]} Nb6 {[%emt 0:03:30]} 19. Bxb6 {[%emt 0:08:30]} Qxb6 {[%emt 0:01:30]} 20. Ned4 {[%emt 0:00:30]} O-O-O {[%emt 0:03:30]} 21. Rh3 {[%emt 0:05:30]} Rhe8 {[%emt 0:01:30]} 22. Rg3 {[%emt 0:09:30]} Bf8 {[%emt 0:01:30]} 23. Re3 {[%emt 0:00:00]} Kb8 {[%emt 0:10:30]} 24. g4 {[%emt 0:00:00]} Ka7 {[%emt 0:00:30]} 25. g5 {[%emt 0:01:30]} hxg5 {[%emt 0:04:30]} 26. fxg5 {[%emt 0:00:30]} Qc7 {[%emt 0:00:30]} 27. Qe2 {[%emt 0:02:30]} (27. Nxc6+ $18 bxc6 28. Rf3) 27... Be7 {[%emt 0:10:30]} 28. Rg1 {[%emt 0:01:30]} Rd7 {[%emt 0:01:30]} 29. g6 {[%emt 0:06:30]} Nxd4 {[%emt 0:08:30]} 30. cxd4 {[%emt 0:07:30]} fxg6 {[%emt 0:04:30]} 31. Rxg6 {[%emt 0:00:30]} Bf8 {[%emt 0:00:00]} 32. Rc3 {[%emt 0:03:30]} Qb6 {[%emt 0:01:50]} 33. Rg1 {[%emt 0:02:30]} Rf7 {[%emt 0:00:36]} 34. Rf1 {[%emt 0:02:30]} Rxf1+ {[%emt 0:04:32]} 35. Qxf1 {[%emt 0:00:30]} Bb4 {[%emt 0:00:48]} 36. Rf3 {[%emt 0:02:30]} a5 {[%emt 0:00:09]} 37. Qd1 {[%emt 0:02:40]} Rc8 {[%emt 0:05:33]} 38. Nc1 {[%emt 0:05:25]} Rc4 {[%emt 0:01:43]} 39. Ne2 {[%emt 0:00:38]} Rc7 {[%emt 0:02:19]} (39... Be7 $16) 40. a3 {[%emt 0:01:46]} Be7 {[%emt 0:00:14]} 41. Rb3 {[%emt 0:02:21]} Qa6 {[%emt 0:00:36]} 42. Nc3 {[%emt 0:00:34]} Rc4 {[%emt 0:01:09] [#]} 43. a4 $1 {[%emt 0:03:00]} Qc6 {[%emt 0:00:48] [#]} (43... Kb8 $142 44. Qf3 Rb4) 44. Nb5+ $1 {[%emt 0:01:37]} Ka6 {[%emt 0:00:21]} 45. Rc3 $2 {[%emt 0:00:00]} (45. Rg3 $18) 45... Bb4 $2 {[%emt 0:00:19]} (45... Rxc3 $1 $11 46. Nxc3 Bb4) 46. Rg3 {[%emt 0:00:48]} Bf8 {[%emt 0:00:43]} 47. b3 {[%emt 0:00:26]} Rb4 {[%emt 0:00:23]} 48. Rc3 {[%emt 0:00:31]} Qd7 {[%emt 0:01:29]} 49. Rc7 {[%emt 0:00:33]} Qd8 {[%emt 0:00:31]} 50. Qc2 {[%emt 0:00:30]} Kb6 {[%emt 0:00:28] [#]} 51. Rc8 {[%emt 0:00:41]} Qe7 {[%emt 0:01:08]} 52. Nd6 {[%emt 0:01:26]} 1-0

[Event "TUR-ch Veterans 2020"]
[Site "Antalya-Belek"]
[Date "2020.01.23"]
[Round "6"]
[White "Ozmen, Halil Nejat"]
[Black "Pekun, Cem"]
[Result "1/2-1/2"]
[ECO "A46"]
[WhiteElo "1789"]
[BlackElo "2061"]
[Annotator "NA"]
[PlyCount "94"]
[EventDate "2020.01.19"]
[EventCountry "TUR"]
[SourceTitle "playchess.com"]
[Source "ChessBase"]
[SourceQuality "1"]
[TimeControl "5400+30"]

1. d4 {[%emt 0:00:30]} c5 {[%emt 0:00:30]} 2. dxc5 {[%emt 0:00:30]} Nf6 {[%emt 0:00:30]} 3. c3 {[%emt 0:06:30]} g6 {[%emt 0:00:30]} 4. Nf3 {[%emt 0:00:30]} Bg7 {[%emt 0:00:30]} 5. g3 {[%emt 0:00:30]} O-O {[%emt 0:00:30]} 6. Bg2 {[%emt 0:00:00]} Qc7 {[%emt 0:01:30]} 7. O-O {[%emt 0:02:00]} Qxc5 {[%emt 0:00:30]} 8. Nbd2 {[%emt 0:00:30]} d6 {[%emt 0:03:30]} 9. Nb3 {[%emt 0:01:30]} Qh5 {[%emt 0:02:30]} 10. Bg5 {[%emt 0:14:30]} Bh3 {[%emt 0:07:30]} 11. Bxf6 {[%emt 0:01:30]} Bxf6 {[%emt 0:01:30]} 12. Bxh3 {[%emt 0:07:30]} Qxh3 {[%emt 0:00:30]} 13. Qd5 {[%emt 0:00:00]} Nc6 {[%emt 0:04:30]} 14. Rfd1 {[%emt 0:01:00]} Qc8 {[%emt 0:01:30]} 15. h4 {[%emt 0:01:30]} h5 {[%emt 0:02:30]} 16. Ng5 {[%emt 0:00:30]} Ne5 {[%emt 0:13:30]} 17. Nd4 {[%emt 0:02:30]} Qc5 {[%emt 0:13:30]} 18. Qxc5 {[%emt 0:04:30]} dxc5 {[%emt 0:00:00]} 19. Ndf3 {[%emt 0:00:30]} Nxf3+ {[%emt 0:01:00]} 20. Nxf3 {[%emt 0:00:30]} Rfd8 {[%emt 0:00:30]} 21. e4 {[%emt 0:00:30]} Kf8 {[%emt 0:01:30]} 22. Kf1 {[%emt 0:00:30]} Ke8 {[%emt 0:00:30]} 23. Ke2 {[%emt 0:00:30]} b5 {[%emt 0:00:30]} 24. a3 {[%emt 0:05:30]} Rab8 {[%emt 0:05:30]} 25. Rxd8+ {[%emt 0:05:30]} Kxd8 {[%emt 0:03:30]} 26. e5 {[%emt 0:00:30]} Bg7 {[%emt 0:01:30]} 27. Ng5 {[%emt 0:00:30]} Ke8 {[%emt 0:04:30]} 28. f4 {[%emt 0:00:00]} f6 {[%emt 0:02:30]} 29. Ne6 {[%emt 0:02:00]} fxe5 {[%emt 0:00:30]} 30. Nxg7+ {[%emt 0:04:30]} Kf7 {[%emt 0:00:30]} 31. Nxh5 $11 {[%emt 0:03:30]} gxh5 {[%emt 0:00:30]} 32. fxe5 {[%emt 0:02:30]} Ke6 {[%emt 0:00:30]} 33. Rd1 {[%emt 0:00:30]} a5 {[%emt 0:00:30]} 34. Ke3 {[%emt 0:00:30]} b4 {[%emt 0:02:30]} 35. axb4 {[%emt 0:02:30]} axb4 {[%emt 0:00:30]} 36. Ke4 {[%emt 0:01:30]} bxc3 {[%emt 0:03:30]} 37. bxc3 {[%emt 0:00:30]} Rg8 {[%emt 0:00:00]} 38. Kf3 {[%emt 0:02:30]} Kxe5 {[%emt 0:01:00]} 39. Re1+ {[%emt 0:00:30]} Kd6 {[%emt 0:01:30]} 40. Re4 {[%emt 0:01:30]} e5 {[%emt 0:00:30]} 41. g4 {[%emt 0:00:30]} Rf8+ {[%emt 0:01:30]} 42. Ke3 {[%emt 0:00:00]} hxg4 {[%emt 0:00:30]} 43. Rxg4 {[%emt 0:00:00]} Kd5 {[%emt 0:00:00]} 44. c4+ {[%emt 0:00:30]} Ke6 {[%emt 0:01:00]} 45. Ke4 {[%emt 0:00:30]} Rd8 {[%emt 0:00:32]} 46. Rg6+ {[%emt 0:00:30]} Kf7 {[%emt 0:00:28]} 47. Rc6 {[%emt 0:00:30]} Rd4+ {[%emt 0:01:28]} 1/2-1/2

[Event "TUR-ch Veterans 2020"]
[Site "Antalya-Belek"]
[Date "2020.01.23"]
[Round "6"]
[White "Ozates, Veysel"]
[Black "Tofan, Ibrahim"]
[Result "0-1"]
[ECO "B06"]
[WhiteElo "1617"]
[BlackElo "2082"]
[Annotator "NA"]
[PlyCount "94"]
[EventDate "2020.01.19"]
[EventCountry "TUR"]
[SourceTitle "playchess.com"]
[Source "ChessBase"]
[SourceQuality "1"]
[TimeControl "5400+30"]

1. e4 {[%emt 0:00:30]} d6 {[%emt 0:00:30]} 2. d4 {[%emt 0:00:00]} g6 {[%emt 0:00:30]} 3. Nc3 {[%emt 0:00:00]} Bg7 {[%emt 0:00:30]} 4. Nf3 {[%emt 0:00:30]} Bg4 {[%emt 0:01:30]} 5. Be2 {[%emt 0:00:00]} Nd7 {[%emt 0:00:30]} 6. h3 {[%emt 0:02:00] B06: Modern Defence} (6. O-O e6 7. Be3 Ne7 8. h3 Bxf3 9. Bxf3 O-O 10. Qe2 e5 11. dxe5 Nxe5 12. Rad1 Qd7 13. Bg4 f5 14. exf5 gxf5 {½-½ (29) Lumachi,G (2286)-Epishin,V (2564) Cattolica 2019}) 6... Bxf3 {[%emt 0:00:30]} 7. Bxf3 {[%emt 0:00:30]} c5 {[%emt 0:00:30]} 8. Be3 {[%emt 0:00:30]} Ngf6 {[%emt 0:05:30]} 9. O-O {[%emt 0:03:30]} cxd4 {[%emt 0:00:30]} 10. Bxd4 {[%emt 0:01:30]} O-O {[%emt 0:00:30]} 11. Nd5 $146 {[%emt 0:03:30]} ({Predecessor:} 11. Re1 Nb6 12. b3 Rc8 13. Qd3 Qc7 {0-1 (47) Ask,J (2165)-Ranby,H (1917) Stockholm 2014}) 11... Ne8 {[%emt 0:03:30]} 12. Bxg7 {[%emt 0:02:30]} Nxg7 {[%emt 0:00:30]} 13. c4 {[%emt 0:05:30]} Ne6 {[%emt 0:01:30]} 14. b3 {[%emt 0:01:30]} Nec5 {[%emt 0:04:30]} 15. Qd4 {[%emt 0:04:30]} Nb6 {[%emt 0:06:30]} 16. Rad1 {[%emt 0:03:30]} Ncd7 {[%emt 0:03:30]} 17. Rfe1 {[%emt 0:07:30]} Re8 {[%emt 0:00:30]} 18. Nxb6 {[%emt 0:03:30]} Qxb6 {[%emt 0:00:30]} 19. Qxb6 {[%emt 0:00:30]} axb6 {[%emt 0:00:30]} 20. Rd2 {[%emt 0:03:30]} Ra3 {[%emt 0:00:30]} 21. e5 {[%emt 0:05:30]} Nxe5 {[%emt 0:00:30]} 22. Bxb7 {[%emt 0:00:30]} Rb8 {[%emt 0:00:30]} 23. Be4 {[%emt 0:01:30]} Kf8 {[%emt 0:00:30]} 24. f4 {[%emt 0:02:30]} Nd7 {[%emt 0:00:30]} 25. Rde2 {[%emt 0:03:30]} Nf6 {[%emt 0:02:30]} 26. Bf3 {[%emt 0:01:30]} e6 {[%emt 0:00:30]} 27. Rd1 {[%emt 0:01:30]} Ke7 {[%emt 0:02:30]} 28. Red2 {[%emt 0:01:30]} Rd8 {[%emt 0:01:30]} 29. g4 {[%emt 0:00:30]} Ne8 {[%emt 0:00:30]} 30. Re2 {[%emt 0:03:30]} Nc7 {[%emt 0:06:30]} 31. f5 {[%emt 0:00:30]} e5 {[%emt 0:02:30]} 32. fxg6 {[%emt 0:01:30]} hxg6 {[%emt 0:00:00]} 33. Kg2 {[%emt 0:01:30]} Ne6 {[%emt 0:00:00]} 34. Kg3 {[%emt 0:00:30]} f5 {[%emt 0:02:30]} 35. Bd5 {[%emt 0:04:30]} Nf4 {[%emt 0:02:30]} 36. Rh2 {[%emt 0:01:30]} Kf6 {[%emt 0:01:30]} 37. h4 {[%emt 0:00:30]} Rh8 {[%emt 0:08:30]} 38. Bf3 {[%emt 0:01:30]} Ke7 {[%emt 0:01:30]} 39. gxf5 {[%emt 0:01:30]} gxf5 {[%emt 0:00:00]} 40. Bd5 {[%emt 0:02:30]} Nh5+ $15 {[%emt 0:01:00]} (40... Ra7 $17 41. Kf3 Kf6) 41. Kf3 {[%emt 0:01:30]} Kf6 {[%emt 0:00:30]} 42. Rg1 {[%emt 0:04:30]} e4+ {[%emt 0:00:00]} 43. Ke3 {[%emt 0:00:30]} Ke5 {[%emt 0:00:00]} 44. Rg5 {[%emt 0:01:30]} Nf6 {[%emt 0:00:30]} 45. Rh3 {[%emt 0:06:33]} Rxa2 {[%emt 0:01:30]} 46. Bxe4 {[%emt 0:04:33]} Nxe4 {[%emt 0:00:30]} 47. Rg7 {[%emt 0:00:00]} f4+ {[%emt 0:00:30]} 0-1

[Event "TUR-ch Veterans 2020"]
[Site "Antalya-Belek"]
[Date "2020.01.23"]
[Round "6"]
[White "Akinci, Ahmet"]
[Black "Yuksel, Mustafa"]
[Result "0-1"]
[ECO "E00"]
[WhiteElo "1355"]
[BlackElo "2004"]
[Annotator "NA"]
[PlyCount "74"]
[EventDate "2020.01.19"]
[EventCountry "TUR"]
[SourceTitle "playchess.com"]
[Source "ChessBase"]
[SourceQuality "1"]
[TimeControl "5400+30"]

1. d4 {[%emt 0:00:30]} Nf6 {[%emt 0:00:30]} 2. c4 {[%emt 0:00:30]} e6 {[%emt 0:00:00]} 3. Bg5 {[%emt 0:07:30]} h6 {[%emt 0:04:00]} 4. Bh4 {[%emt 0:00:00]} Bb4+ {[%emt 0:00:30]} 5. Nd2 {[%emt 0:02:00]} g5 {[%emt 0:10:30]} 6. Bg3 {[%emt 0:00:30]} Ne4 {[%emt 0:00:00] E00: Catalan Bogo-Indian (3 g3 Bb4+)} 7. Ngf3 {[%emt 0:00:30]} c5 {[%emt 0:02:00]} (7... h5 8. Qc2 Nxd2 9. Nxd2 Nc6 10. d5 h4 11. dxc6 hxg3 12. fxg3 bxc6 13. e3 Rb8 14. a3 {1-0 (31) Ivanisevic,I (2648)-Aroshidze,L (2517) Sitges 2016}) 8. a3 {[%emt 0:00:30]} Bxd2+ {[%emt 0:03:30]} 9. Nxd2 {[%emt 0:00:30]} Nxg3 {[%emt 0:00:00]} 10. hxg3 {[%emt 0:00:00]} cxd4 {[%emt 0:00:00]} 11. Nf3 {[%emt 0:01:00]} e5 {[%emt 0:02:30]} 12. Qd2 {[%emt 0:00:30]} Nc6 $146 {[%emt 0:03:30]} ({Predecessor:} 12... Qf6 13. e3 g4 14. Nh2 dxe3 15. Qxe3 {½-½ (58) Piceu,T (2398)-Dardha,A (2296) Brasschaat 2008}) 13. Nxg5 {[%emt 0:00:30]} d5 {[%emt 0:00:30] [#]} 14. cxd5 $1 {[%emt 0:03:30]} Qxd5 {[%emt 0:00:30]} 15. e4 {[%emt 0:00:30]} Qd6 {[%emt 0:05:30]} 16. Bc4 {[%emt 0:00:30]} Nd8 {[%emt 0:01:30]} 17. f4 {[%emt 0:06:30]} f6 {[%emt 0:11:30]} 18. Nf3 {[%emt 0:01:30]} Bd7 {[%emt 0:03:30]} 19. Rh5 {[%emt 0:01:30]} Nc6 {[%emt 0:00:30]} 20. b4 {[%emt 0:13:30]} Bg4 {[%emt 0:01:30]} 21. Rh4 {[%emt 0:02:30]} Bxf3 {[%emt 0:03:30]} 22. gxf3 {[%emt 0:00:30]} O-O-O {[%emt 0:00:00]} 23. b5 {[%emt 0:00:30]} Ne7 {[%emt 0:00:00]} 24. fxe5 {[%emt 0:00:30]} ({White should try} 24. f5 $11) 24... fxe5 {[%emt 0:00:30]} 25. f4 {[%emt 0:05:30]} (25. Rh5 $11 {remains equal.}) 25... Kb8 {[%emt 0:00:30]} 26. f5 {[%emt 0:00:00] [#]} (26. fxe5 $17 {was necessary.} Qc7 27. Rc1) 26... Rc8 {[%emt 0:00:30]} (26... d3 $1 $19 {and Black stays clearly on top.} 27. Kf1 Qd4) 27. Be6 {[%emt 0:03:00]} Rc3 {[%emt 0:03:30]} 28. Rxh6 {[%emt 0:00:30]} Rd8 {[%emt 0:03:30]} 29. Rc1 $2 {[%emt 0:07:30]} ({White should play} 29. Kf2 $15) 29... Re3+ {[%emt 0:00:30]} ({Not} 29... Rxg3 30. Qb4 $11) 30. Kf2 {[%emt 0:00:30]} Qxa3 {[%emt 0:00:30]} 31. Rh3 {[%emt 0:09:30]} Rd3 $19 {[%emt 0:00:30]} ({Not} 31... Rxe4 32. Qc2 $15) 32. Qg5 {[%emt 0:01:30]} Qb2+ {[%emt 0:13:30]} 33. Kg1 {[%emt 0:02:30]} Rd2 {[%emt 0:00:30]} 34. Rf1 {[%emt 0:02:30]} Rg2+ {[%emt 0:00:30]} 35. Kh1 {[%emt 0:00:30]} Qe2 {[%emt 0:00:00]} 36. Qc1 {[%emt 0:00:30]} Qxe4 {[%emt 0:00:00]} 37. Rh4 {[%emt 0:00:30]} Rxg3+ {[%emt 0:01:30]} 0-1

[Event "TUR-ch Veterans 2020"]
[Site "Antalya-Belek"]
[Date "2020.01.23"]
[Round "6"]
[White "Ersoz, Celalettin"]
[Black "Tozaki, Halil"]
[Result "0-1"]
[ECO "D94"]
[WhiteElo "1229"]
[BlackElo "1880"]
[Annotator "NA"]
[PlyCount "64"]
[EventDate "2020.01.19"]
[EventCountry "TUR"]
[SourceTitle "playchess.com"]
[Source "ChessBase"]
[SourceQuality "1"]
[TimeControl "5400+30"]

1. d4 {[%emt 0:00:30]} Nf6 {[%emt 0:00:30]} 2. c4 {[%emt 0:00:00]} g6 {[%emt 0:00:00]} 3. Nc3 {[%emt 0:01:00]} d5 {[%emt 0:00:00]} 4. e3 {[%emt 0:01:30]} Bg7 {[%emt 0:00:00]} 5. Nf3 {[%emt 0:00:30]} O-O {[%emt 0:00:00]} 6. Be2 {[%emt 0:01:30]} dxc4 {[%emt 0:03:30]} 7. Bxc4 {[%emt 0:08:30]} c5 {[%emt 0:00:00]} 8. O-O {[%emt 0:01:30]} Nbd7 {[%emt 0:02:00]} 9. Re1 {[%emt 0:09:30] D94: Grünfeld: 4 Nf3 Bg7 5 e3} Nb6 {[%emt 0:03:30]} (9... e6 10. a4 b6 11. d5 exd5 12. Nxd5 Bb7 13. e4 Nxd5 14. exd5 Nf6 15. d6 Bxf3 16. Qxf3 Qxd6 {0-1 (31) Balashov,Y (2455)-Kovalenko,I (2611) Vladivostok 2012}) 10. Be2 $146 {[%emt 0:05:30]} ({Predecessor:} 10. Bb3 c4 11. Bc2 Nfd5 12. a3 Nxc3 13. bxc3 Nd5 14. Bd2 Qa5 15. Qe2 Nb6 16. h3 Bd7 {0-1 (41) Willmann,B (1795)-Kelemen,G (1875) LSS email 2012}) 10... cxd4 {[%emt 0:00:30]} 11. exd4 {[%emt 0:01:30]} Nbd5 {[%emt 0:01:30]} 12. Qb3 {[%emt 0:03:30]} b6 {[%emt 0:00:30]} 13. Bc4 {[%emt 0:04:30]} Bb7 {[%emt 0:01:30]} 14. Ne5 {[%emt 0:01:30]} e6 {[%emt 0:03:30]} 15. Bg5 {[%emt 0:06:30]} Nxc3 {[%emt 0:03:30]} 16. bxc3 {[%emt 0:00:30]} Qc7 {[%emt 0:02:30]} 17. Rac1 {[%emt 0:08:30]} Rac8 {[%emt 0:01:30]} 18. Bd3 {[%emt 0:05:30]} h6 {[%emt 0:06:30]} 19. Bh4 {[%emt 0:01:30]} Nd5 {[%emt 0:06:30]} 20. c4 {[%emt 0:01:30]} (20. Bg3 $5 {[%cal Re5g6]} Qe7 21. Be4 $11) 20... Nf4 {[%emt 0:01:30]} 21. Bf1 {[%emt 0:03:30]} g5 {[%emt 0:01:30]} 22. Bg3 {[%emt 0:00:30]} Nh5 {[%emt 0:00:30]} 23. Ng6 {[%emt 0:01:30]} Nxg3 {[%emt 0:01:30]} 24. Nxf8 {[%emt 0:00:30]} Nxf1 {[%emt 0:01:30]} ({Weaker is} 24... Kxf8 25. Qa3+ Kg8 26. Qxg3 $11) 25. Rxf1 {[%emt 0:03:30]} Rxf8 {[%emt 0:02:30]} 26. Rfd1 {[%emt 0:01:30]} Rd8 {[%emt 0:00:30]} 27. d5 {[%emt 0:02:30]} exd5 {[%emt 0:01:30]} 28. cxd5 {[%emt 0:00:30]} Qd6 {[%emt 0:00:30]} 29. Qc4 {[%emt 0:04:30]} Be5 {[%emt 0:01:30]} 30. g3 {[%emt 0:00:30]} Rc8 {[%emt 0:02:30]} 31. Qa4 {[%emt 0:02:22]} (31. Qb5 $142 Rxc1 32. Rxc1) 31... Rxc1 {[%emt 0:02:30]} 32. Rxc1 {[%emt 0:00:02]} Qxd5 $19 {[%emt 0:00:30]} 0-1